[Event "Titled Tuesday Blitz November 29 Early 2022"]
[White "Abdrlauf, Elham"]
[Black "Jimenez Almeida, Luis David"]
[WhiteFideId "1533533"]
[BlackFideId "22242244"]
[WhiteElo "2447"]
[BlackElo "2158"]
[Result "0-1"]
[Round "01"]
[TimeControl "180+1"]
[Date "2022.11.30"]
[WhiteClock "0:00:04"]
[BlackClock "0:00:12"]

1. b3 {[%clk 0:02:56]}  d5 {[%clk 0:02:55]} 2. Bb2 {[%clk 0:02:57]}  Nf6 {[%clk 0:02:55]} 3. g3 {[%clk 0:02:55]}  Bg4 {[%clk 0:02:55]} 4. Bg2 {[%clk 0:02:55]}  e6 {[%clk 0:02:54]} 5. Nf3 {[%clk 0:02:55]}  Be7 {[%clk 0:02:44]} 6. O-O {[%clk 0:02:54]}  O-O {[%clk 0:02:36]} 7. Ne5 {[%clk 0:02:54]}  Bh5 {[%clk 0:02:36]} 8. f4 {[%clk 0:02:55]}  Nbd7 {[%clk 0:02:34]} 9. d3 {[%clk 0:02:54]}  c6 {[%clk 0:02:32]} 10. h3 {[%clk 0:02:53]}  Nxe5 {[%clk 0:02:27]} 11. Bxe5 {[%clk 0:02:51]}  Nd7 {[%clk 0:02:27]} 12. Bb2 {[%clk 0:02:48]}  Bg6 {[%clk 0:02:19]} 13. Nd2 {[%clk 0:02:47]}  a5 {[%clk 0:02:15]} 14. e4 {[%clk 0:02:44]}  dxe4 {[%clk 0:02:09]} 15. dxe4 {[%clk 0:02:45]}  Bf6 {[%clk 0:02:07]} 16. Bxf6 {[%clk 0:02:32]}  Nxf6 {[%clk 0:02:02]} 17. Qe2 {[%clk 0:02:25]}  Qd4+ {[%clk 0:01:58]} 18. Kh2 {[%clk 0:02:24]}  Rfd8 {[%clk 0:01:58]} 19. Rad1 {[%clk 0:02:24]}  h6 {[%clk 0:01:52]} 20. Nc4 {[%clk 0:02:11]}  Qc5 {[%clk 0:01:43]} 21. Ne5 {[%clk 0:02:04]}  Bh7 {[%clk 0:01:35]} 22. c4 {[%clk 0:01:26]}  a4 {[%clk 0:01:19]} 23. bxa4 {[%clk 0:01:20]}  Qa5 {[%clk 0:01:15]} 24. Rxd8+ {[%clk 0:00:58]}  Rxd8 {[%clk 0:01:16]} 25. Rd1 {[%clk 0:00:57]}  Rxd1 {[%clk 0:00:42]} 26. Qxd1 {[%clk 0:00:58]}  Bxe4 {[%clk 0:00:42]} 27. Bxe4 {[%clk 0:00:51]}  Nxe4 {[%clk 0:00:43]} 28. Qd7 {[%clk 0:00:52]}  Qd2+ {[%clk 0:00:42]} 29. Qxd2 {[%clk 0:00:52]}  Nxd2 {[%clk 0:00:43]} 30. a5 {[%clk 0:00:53]}  f6 {[%clk 0:00:42]} 31. Nxc6 {[%clk 0:00:24]}  bxc6 {[%clk 0:00:36]} 32. c5 {[%clk 0:00:25]}  Nf3+ {[%clk 0:00:15]} 33. Kh1 {[%clk 0:00:22]}  Nd4 {[%clk 0:00:15]} 34. a4 {[%clk 0:00:23]}  e5 {[%clk 0:00:12]} 35. a6 {[%clk 0:00:23]}  Ne6 {[%clk 0:00:12]} 36. a7 {[%clk 0:00:13]}  Nc7 {[%clk 0:00:13]} 37. Kg2 {[%clk 0:00:11]}  exf4 {[%clk 0:00:13]} 38. gxf4 {[%clk 0:00:11]}  Kf7 {[%clk 0:00:13]} 39. f5 {[%clk 0:00:12]}  g6 {[%clk 0:00:12]} 40. Kg3 {[%clk 0:00:05]}  gxf5 {[%clk 0:00:12]} 41. Kh4 {[%clk 0:00:05]}  Kg6 {[%clk 0:00:11]} 42. Kg3 {[%clk 0:00:06]}  h5 {[%clk 0:00:11]} 43. h4 {[%clk 0:00:02]}  Kf7 {[%clk 0:00:07]} 44. Kf3 {[%clk 0:00:02]}  Ke6 {[%clk 0:00:08]} 45. Kf4 {[%clk 0:00:02]}  Na8 {[%clk 0:00:08]} 46. Ke3 {[%clk 0:00:02]}  Ke5 {[%clk 0:00:08]} 47. Kf3 {[%clk 0:00:03]}  f4 {[%clk 0:00:09]} 48. Kg2 {[%clk 0:00:03]}  f5 {[%clk 0:00:10]} 49. Kf3 {[%clk 0:00:03]}  Nc7 {[%clk 0:00:10]} 50. a5 {[%clk 0:00:03]}  Na8 {[%clk 0:00:09]} 51. Ke2 {[%clk 0:00:04]}  Ke4 {[%clk 0:00:10]} 52. Kf2 {[%clk 0:00:04]}  f3 {[%clk 0:00:10]} 53. Kf1 {[%clk 0:00:05]}  Ke3 {[%clk 0:00:10]} 54. Ke1 {[%clk 0:00:05]}  f4 {[%clk 0:00:11]} 55. Kf1 {[%clk 0:00:05]}  f2 {[%clk 0:00:10]} 56. a6 {[%clk 0:00:03]}  Nc7 {[%clk 0:00:11]} 57. a8=Q {[%clk 0:00:04]}  Nxa8 {[%clk 0:00:11]} 58. a7 {[%clk 0:00:04]}  Nc7 {[%clk 0:00:12]} 0-1


[Site "https://www.chess.com"]

[Event "Titled Tuesday Blitz November 29 Early 2022"]
[White "Adnan, Habib"]
[Black "Sadykov, Ramil"]
[WhiteFideId "11202270"]
[BlackFideId "24113590"]
[WhiteElo "2110"]
[BlackElo "2245"]
[Result "0-1"]
[Round "01"]
[TimeControl "180+1"]
[Date "2022.11.30"]
[WhiteClock "0:00:16"]
[BlackClock "0:00:30"]

1. d4 {[%clk 0:02:59]}  Nf6 {[%clk 0:02:42]} 2. c4 {[%clk 0:02:53]}  g6 {[%clk 0:02:41]} 3. Nf3 {[%clk 0:02:51]}  Bg7 {[%clk 0:02:40]} 4. Nc3 {[%clk 0:02:51]}  d5 {[%clk 0:02:38]} 5. Bg5 {[%clk 0:02:51]}  dxc4 {[%clk 0:02:37]} 6. e3 {[%clk 0:02:41]}  Be6 {[%clk 0:02:36]} 7. Ne5 {[%clk 0:02:32]}  Nd5 {[%clk 0:02:33]} 8. Nxc4 {[%clk 0:02:30]}  c5 {[%clk 0:02:31]} 9. Qa4+ {[%clk 0:02:02]}  Nc6 {[%clk 0:02:27]} 10. Rd1 {[%clk 0:01:50]}  cxd4 {[%clk 0:02:24]} 11. exd4 {[%clk 0:01:48]}  O-O {[%clk 0:02:23]} 12. Be3 {[%clk 0:01:45]}  a6 {[%clk 0:02:17]} 13. Ne5 {[%clk 0:01:20]}  Nxe5 {[%clk 0:02:13]} 14. dxe5 {[%clk 0:01:20]}  Nxc3 {[%clk 0:02:07]} 15. bxc3 {[%clk 0:01:20]}  Qc7 {[%clk 0:02:05]} 16. Bd4 {[%clk 0:01:04]}  Bxe5 {[%clk 0:02:03]} 17. Be2 {[%clk 0:01:03]}  Rac8 {[%clk 0:01:54]} 18. O-O {[%clk 0:00:55]}  Bxh2+ {[%clk 0:01:54]} 19. Kh1 {[%clk 0:00:55]}  Be5 {[%clk 0:01:53]} 20. Bf3 {[%clk 0:00:47]}  Bxd4 {[%clk 0:01:38]} 21. cxd4 {[%clk 0:00:46]}  Qc4 {[%clk 0:01:38]} 22. Qxc4 {[%clk 0:00:42]}  Bxc4 {[%clk 0:01:39]} 23. Rfe1 {[%clk 0:00:42]}  Rc7 {[%clk 0:01:40]} 24. a3 {[%clk 0:00:38]}  Rd8 {[%clk 0:01:39]} 25. Kh2 {[%clk 0:00:35]}  e6 {[%clk 0:01:39]} 26. Kg3 {[%clk 0:00:34]}  Bd5 {[%clk 0:01:38]} 27. Re3 {[%clk 0:00:29]}  Rc4 {[%clk 0:01:33]} 28. Be2 {[%clk 0:00:27]}  Ra4 {[%clk 0:01:29]} 29. f3 {[%clk 0:00:26]}  Bc6 {[%clk 0:01:29]} 30. d5 {[%clk 0:00:23]}  Rxd5 {[%clk 0:01:27]} 31. Rc1 {[%clk 0:00:22]}  Rad4 {[%clk 0:01:25]} 32. Kf2 {[%clk 0:00:20]}  Rd2 {[%clk 0:01:23]} 33. Ke1 {[%clk 0:00:19]}  Kg7 {[%clk 0:01:21]} 34. g4 {[%clk 0:00:18]}  R5d4 {[%clk 0:01:16]} 35. Rcc3 {[%clk 0:00:17]}  Rd6 {[%clk 0:00:56]} 36. Kf2 {[%clk 0:00:15]}  Ra2 {[%clk 0:00:55]} 37. Kg3 {[%clk 0:00:14]}  Rdd2 {[%clk 0:00:50]} 38. Bc4 {[%clk 0:00:14]}  Rab2 {[%clk 0:00:50]} 39. Kf4 {[%clk 0:00:13]}  h6 {[%clk 0:00:48]} 40. Bxa6 {[%clk 0:00:10]}  Bxf3 {[%clk 0:00:39]} 41. Rxf3 {[%clk 0:00:08]}  bxa6 {[%clk 0:00:38]} 42. Rc7 {[%clk 0:00:08]}  Rf2 {[%clk 0:00:35]} 43. Kg3 {[%clk 0:00:08]}  Rxf3+ {[%clk 0:00:35]} 44. Kxf3 {[%clk 0:00:09]}  Rb3+ {[%clk 0:00:35]} 45. Ke4 {[%clk 0:00:09]}  Rxa3 {[%clk 0:00:34]} 46. Ra7 {[%clk 0:00:10]}  Ra4+ {[%clk 0:00:33]} 47. Kf3 {[%clk 0:00:10]}  g5 {[%clk 0:00:33]} 48. Kg3 {[%clk 0:00:10]}  Ra3+ {[%clk 0:00:33]} 49. Kf2 {[%clk 0:00:10]}  a5 {[%clk 0:00:33]} 50. Ke2 {[%clk 0:00:10]}  a4 {[%clk 0:00:33]} 51. Kf2 {[%clk 0:00:09]}  Ra2+ {[%clk 0:00:32]} 52. Ke3 {[%clk 0:00:10]}  Ra1 {[%clk 0:00:29]} 53. Kd3 {[%clk 0:00:11]}  a3 {[%clk 0:00:28]} 54. Kc3 {[%clk 0:00:12]}  Kg6 {[%clk 0:00:24]} 55. Kb3 {[%clk 0:00:10]}  Rg1 {[%clk 0:00:23]} 56. Kxa3 {[%clk 0:00:10]}  Ra1+ {[%clk 0:00:23]} 57. Kb4 {[%clk 0:00:10]}  Rxa7 {[%clk 0:00:23]} 58. Kc5 {[%clk 0:00:10]}  Ra4 {[%clk 0:00:23]} 59. Kb5 {[%clk 0:00:10]}  Rxg4 {[%clk 0:00:24]} 60. Kc5 {[%clk 0:00:11]}  h5 {[%clk 0:00:24]} 61. Kd6 {[%clk 0:00:11]}  h4 {[%clk 0:00:25]} 62. Ke7 {[%clk 0:00:12]}  Rf4 {[%clk 0:00:25]} 63. Kf8 {[%clk 0:00:13]}  h3 {[%clk 0:00:24]} 64. Ke7 {[%clk 0:00:13]}  h2 {[%clk 0:00:25]} 65. Kf8 {[%clk 0:00:13]}  h1=Q {[%clk 0:00:26]} 66. Ke7 {[%clk 0:00:14]}  Qh8 {[%clk 0:00:26]} 67. Kd7 {[%clk 0:00:13]}  Rd4+ {[%clk 0:00:26]} 68. Kc6 {[%clk 0:00:14]}  Qc8+ {[%clk 0:00:27]} 69. Kb5 {[%clk 0:00:14]}  Rd5+ {[%clk 0:00:27]} 70. Kb4 {[%clk 0:00:15]}  Qb7+ {[%clk 0:00:27]} 71. Kc4 {[%clk 0:00:15]}  Qb5+ {[%clk 0:00:28]} 72. Kc3 {[%clk 0:00:15]}  Rd3+ {[%clk 0:00:29]} 73. Kc2 {[%clk 0:00:15]}  Qb3+ {[%clk 0:00:29]} 74. Kc1 {[%clk 0:00:16]}  Rd1# {[%clk 0:00:30]} 0-1


[Site "https://www.chess.com"]

[Event "Titled Tuesday Blitz November 29 Early 2022"]
[White "Aldokhin, Ivan"]
[Black "Lesbekova, Assel"]
[WhiteFideId "24115720"]
[BlackFideId "13713248"]
[WhiteElo "2313"]
[BlackElo "1700"]
[Result "1-0"]
[Round "01"]
[TimeControl "180+1"]
[Date "2022.11.30"]
[WhiteClock "0:00:05"]
[BlackClock "0:00:12"]

1. e4 {[%clk 0:02:58]}  c5 {[%clk 0:02:57]} 2. Nf3 {[%clk 0:02:58]}  Nc6 {[%clk 0:02:53]} 3. d4 {[%clk 0:02:58]}  cxd4 {[%clk 0:02:54]} 4. Nxd4 {[%clk 0:02:59]}  e5 {[%clk 0:02:53]} 5. Nxc6 {[%clk 0:02:56]}  bxc6 {[%clk 0:02:53]} 6. c4 {[%clk 0:02:37]}  Nf6 {[%clk 0:02:49]} 7. Bd3 {[%clk 0:02:33]}  Bb4+ {[%clk 0:02:46]} 8. Nd2 {[%clk 0:02:19]}  O-O {[%clk 0:02:43]} 9. O-O {[%clk 0:02:18]}  d5 {[%clk 0:02:38]} 10. Qe2 {[%clk 0:01:44]}  d4 {[%clk 0:02:28]} 11. a3 {[%clk 0:01:38]}  Bd6 {[%clk 0:02:15]} 12. b4 {[%clk 0:01:37]}  a5 {[%clk 0:02:08]} 13. c5 {[%clk 0:01:37]}  Bc7 {[%clk 0:02:06]} 14. Bb2 {[%clk 0:01:37]}  Bg4 {[%clk 0:02:01]} 15. f3 {[%clk 0:01:32]}  Be6 {[%clk 0:02:01]} 16. Bc4 {[%clk 0:00:58]}  Qb8 {[%clk 0:01:34]} 17. Bxe6 {[%clk 0:00:55]}  fxe6 {[%clk 0:01:33]} 18. Qc4 {[%clk 0:00:55]}  Kf7 {[%clk 0:01:28]} 19. f4 {[%clk 0:00:49]}  exf4 {[%clk 0:01:20]} 20. Nf3 {[%clk 0:00:42]}  Kg8 {[%clk 0:01:00]} 21. Nxd4 {[%clk 0:00:42]}  axb4 {[%clk 0:00:55]} 22. axb4 {[%clk 0:00:39]}  Rxa1 {[%clk 0:00:52]} 23. Bxa1 {[%clk 0:00:35]}  Kh8 {[%clk 0:00:47]} 24. Nxe6 {[%clk 0:00:30]}  Rf7 {[%clk 0:00:36]} 25. Ng5 {[%clk 0:00:29]}  Rd7 {[%clk 0:00:22]} 26. Nf7+ {[%clk 0:00:26]}  Kg8 {[%clk 0:00:21]} 27. Ne5+ {[%clk 0:00:17]}  Kh8 {[%clk 0:00:20]} 28. Nxd7 {[%clk 0:00:17]}  Nxd7 {[%clk 0:00:21]} 29. Rd1 {[%clk 0:00:12]}  Ne5 {[%clk 0:00:19]} 30. Qe6 {[%clk 0:00:09]}  h6 {[%clk 0:00:16]} 31. Bxe5 {[%clk 0:00:05]}  Bxe5 {[%clk 0:00:17]} 32. Qxc6 {[%clk 0:00:04]}  Qxb4 {[%clk 0:00:15]} 33. Qc8+ {[%clk 0:00:04]}  Kh7 {[%clk 0:00:12]} 34. Qf5+ {[%clk 0:00:05]} 1-0


[Site "https://www.chess.com"]

[Event "Titled Tuesday Blitz November 29 Early 2022"]
[White "Ankudinova, Yelena"]
[Black "Janaszak, Dawid"]
[WhiteFideId "13702114"]
[BlackFideId "1119206"]
[WhiteElo "1930"]
[BlackElo "2226"]
[Result "0-1"]
[Round "01"]
[TimeControl "180+1"]
[Date "2022.11.30"]
[WhiteClock "0:00:01"]
[BlackClock "0:01:01"]

1. c4 {[%clk 0:02:57]}  Nf6 {[%clk 0:02:59]} 2. Nc3 {[%clk 0:02:57]}  d5 {[%clk 0:02:59]} 3. cxd5 {[%clk 0:02:56]}  Nxd5 {[%clk 0:03:00]} 4. g3 {[%clk 0:02:53]}  h5 {[%clk 0:02:59]} 5. h3 {[%clk 0:02:49]}  h4 {[%clk 0:02:58]} 6. g4 {[%clk 0:02:47]}  g6 {[%clk 0:02:57]} 7. d3 {[%clk 0:02:42]}  Bg7 {[%clk 0:02:57]} 8. Bd2 {[%clk 0:02:39]}  b6 {[%clk 0:02:54]} 9. Bg2 {[%clk 0:02:37]}  Bb7 {[%clk 0:02:54]} 10. Nf3 {[%clk 0:02:32]}  e6 {[%clk 0:02:46]} 11. Qa4+ {[%clk 0:02:23]}  Bc6 {[%clk 0:02:44]} 12. Qa3 {[%clk 0:02:20]}  Qe7 {[%clk 0:02:39]} 13. Qxe7+ {[%clk 0:02:18]}  Nxe7 {[%clk 0:02:40]} 14. O-O {[%clk 0:02:15]}  Nd7 {[%clk 0:02:37]} 15. Rac1 {[%clk 0:02:15]}  O-O-O {[%clk 0:02:29]} 16. b4 {[%clk 0:02:13]}  Kb8 {[%clk 0:02:27]} 17. Rc2 {[%clk 0:02:08]}  Bb7 {[%clk 0:02:22]} 18. Rfc1 {[%clk 0:02:04]}  Rc8 {[%clk 0:02:22]} 19. Bg5 {[%clk 0:01:52]}  f6 {[%clk 0:02:18]} 20. Bf4 {[%clk 0:01:44]}  e5 {[%clk 0:02:15]} 21. Be3 {[%clk 0:01:42]}  g5 {[%clk 0:02:10]} 22. d4 {[%clk 0:01:40]}  Ng6 {[%clk 0:02:08]} 23. dxe5 {[%clk 0:01:36]}  Ndxe5 {[%clk 0:02:09]} 24. Nxe5 {[%clk 0:01:35]}  Nxe5 {[%clk 0:02:10]} 25. Bxb7 {[%clk 0:01:34]}  Kxb7 {[%clk 0:02:11]} 26. Nd5 {[%clk 0:01:31]}  c6 {[%clk 0:02:04]} 27. Ne7 {[%clk 0:01:30]}  Rc7 {[%clk 0:02:05]} 28. Nf5 {[%clk 0:01:30]}  Bf8 {[%clk 0:02:01]} 29. f4 {[%clk 0:01:30]}  gxf4 {[%clk 0:01:58]} 30. Bxf4 {[%clk 0:01:29]}  Bxb4 {[%clk 0:01:58]} 31. Kf2 {[%clk 0:01:15]}  Bc5+ {[%clk 0:01:52]} 32. Kf1 {[%clk 0:01:01]}  Rf8 {[%clk 0:01:46]} 33. Rb1 {[%clk 0:00:57]}  Ka8 {[%clk 0:01:35]} 34. a4 {[%clk 0:00:52]}  a5 {[%clk 0:01:34]} 35. e3 {[%clk 0:00:40]}  Rd7 {[%clk 0:01:28]} 36. Ke2 {[%clk 0:00:39]}  Ng6 {[%clk 0:01:25]} 37. Bh2 {[%clk 0:00:33]}  Re8 {[%clk 0:01:25]} 38. Kf3 {[%clk 0:00:25]}  Rd3 {[%clk 0:01:20]} 39. Re1 {[%clk 0:00:17]}  Ra3 {[%clk 0:01:20]} 40. Rc4 {[%clk 0:00:16]}  Ra2 {[%clk 0:01:14]} 41. Nd6 {[%clk 0:00:14]}  Re6 {[%clk 0:01:08]} 42. Ne4 {[%clk 0:00:03]}  Rxh2 {[%clk 0:01:07]} 43. Nxc5 {[%clk 0:00:03]}  bxc5 {[%clk 0:01:05]} 44. Rxc5 {[%clk 0:00:03]}  Rxh3+ {[%clk 0:01:04]} 45. Kf2 {[%clk 0:00:02]}  Rh2+ {[%clk 0:01:02]} 46. Kf3 {[%clk 0:00:01]}  Ne5+ {[%clk 0:01:01]} 0-1


[Site "https://www.chess.com"]

[Event "Titled Tuesday Blitz November 29 Early 2022"]
[White "Antonio, Jorge Carlos"]
[Black "Cadena M, Gustavo Adolfo"]
[WhiteFideId "113190"]
[BlackFideId "4404815"]
[WhiteElo "2247"]
[BlackElo "2241"]
[Result "1-0"]
[Round "01"]
[TimeControl "180+1"]
[Date "2022.11.30"]
[WhiteClock "0:01:17"]
[BlackClock "0:00:18"]

1. e4 {[%clk 0:02:59]}  c6 {[%clk 0:02:50]} 2. d4 {[%clk 0:02:58]}  d5 {[%clk 0:02:51]} 3. e5 {[%clk 0:02:56]}  c5 {[%clk 0:02:51]} 4. c3 {[%clk 0:02:53]}  Nc6 {[%clk 0:02:51]} 5. Nf3 {[%clk 0:02:53]}  Bg4 {[%clk 0:02:52]} 6. Bb5 {[%clk 0:02:50]}  cxd4 {[%clk 0:02:52]} 7. cxd4 {[%clk 0:02:44]}  e6 {[%clk 0:02:48]} 8. O-O {[%clk 0:02:40]}  Rc8 {[%clk 0:02:47]} 9. Be3 {[%clk 0:02:36]}  Qb6 {[%clk 0:02:45]} 10. a4 {[%clk 0:02:34]}  a6 {[%clk 0:02:37]} 11. h3 {[%clk 0:02:30]}  Bh5 {[%clk 0:01:59]} 12. Bxc6+ {[%clk 0:02:26]}  Rxc6 {[%clk 0:01:58]} 13. Nc3 {[%clk 0:02:23]}  Qxb2 {[%clk 0:01:48]} 14. Bd2 {[%clk 0:02:19]}  Bxf3 {[%clk 0:01:46]} 15. gxf3 {[%clk 0:02:16]}  Qb6 {[%clk 0:01:38]} 16. Rb1 {[%clk 0:02:12]}  Qc7 {[%clk 0:01:38]} 17. Qb3 {[%clk 0:02:08]}  b6 {[%clk 0:01:32]} 18. f4 {[%clk 0:02:03]}  Ne7 {[%clk 0:01:31]} 19. a5 {[%clk 0:01:58]}  b5 {[%clk 0:01:24]} 20. Nxb5 {[%clk 0:01:54]}  axb5 {[%clk 0:00:21]} 21. Qxb5 {[%clk 0:01:53]}  Qd7 {[%clk 0:00:20]} 22. a6 {[%clk 0:01:49]}  Rc8 {[%clk 0:00:20]} 23. Qxd7+ {[%clk 0:01:45]}  Kxd7 {[%clk 0:00:21]} 24. Rb7+ {[%clk 0:01:40]}  Ke8 {[%clk 0:00:18]} 25. Rfb1 {[%clk 0:01:36]}  Nc6 {[%clk 0:00:18]} 26. a7 {[%clk 0:01:33]}  Nxa7 {[%clk 0:00:17]} 27. Rxa7 {[%clk 0:01:32]}  Be7 {[%clk 0:00:17]} 28. Rbb7 {[%clk 0:01:30]}  Bh4 {[%clk 0:00:17]} 29. Rxf7 {[%clk 0:01:28]}  Rf8 {[%clk 0:00:18]} 30. Rxg7 {[%clk 0:01:26]}  Rc2 {[%clk 0:00:17]} 31. Ra8+ {[%clk 0:01:17]}  Bd8 {[%clk 0:00:18]} 32. Ba5 {[%clk 0:01:17]} 1-0


[Site "https://www.chess.com"]

[Event "Titled Tuesday Blitz November 29 Early 2022"]
[White "Arabidze, Meri"]
[Black "Bogaudinov, Rushan"]
[WhiteFideId "13604040"]
[BlackFideId "4129288"]
[WhiteElo "2403"]
[BlackElo "1997"]
[Result "1-0"]
[Round "01"]
[TimeControl "180+1"]
[Date "2022.11.30"]
[WhiteClock "0:01:34"]
[BlackClock "0:01:01"]

1. Nf3 {[%clk 0:02:59]}  e6 {[%clk 0:02:57]} 2. b3 {[%clk 0:02:59]}  d5 {[%clk 0:02:57]} 3. Bb2 {[%clk 0:02:59]}  a5 {[%clk 0:02:58]} 4. a3 {[%clk 0:02:57]}  Nf6 {[%clk 0:02:58]} 5. e3 {[%clk 0:02:57]}  Be7 {[%clk 0:02:58]} 6. c4 {[%clk 0:02:56]}  O-O {[%clk 0:02:57]} 7. Be2 {[%clk 0:02:56]}  c5 {[%clk 0:02:52]} 8. cxd5 {[%clk 0:02:53]}  exd5 {[%clk 0:02:52]} 9. d4 {[%clk 0:02:53]}  b6 {[%clk 0:02:46]} 10. O-O {[%clk 0:02:53]}  Nc6 {[%clk 0:02:45]} 11. Nc3 {[%clk 0:02:52]}  Be6 {[%clk 0:02:35]} 12. Rc1 {[%clk 0:02:35]}  Rc8 {[%clk 0:02:32]} 13. Na4 {[%clk 0:02:34]}  cxd4 {[%clk 0:02:26]} 14. Nxd4 {[%clk 0:02:35]}  Nxd4 {[%clk 0:02:22]} 15. Qxd4 {[%clk 0:02:36]}  Rb8 {[%clk 0:02:19]} 16. Rfd1 {[%clk 0:02:31]}  Qd6 {[%clk 0:02:01]} 17. h3 {[%clk 0:02:22]}  h6 {[%clk 0:02:01]} 18. Bb5 {[%clk 0:02:17]}  Rfc8 {[%clk 0:01:59]} 19. Qe5 {[%clk 0:02:15]}  Rxc1 {[%clk 0:01:52]} 20. Rxc1 {[%clk 0:02:14]}  Qxe5 {[%clk 0:01:39]} 21. Bxe5 {[%clk 0:02:15]}  Rf8 {[%clk 0:01:32]} 22. Bb2 {[%clk 0:02:11]}  Rb8 {[%clk 0:01:30]} 23. Rc7 {[%clk 0:02:00]}  Bd8 {[%clk 0:01:28]} 24. Rc1 {[%clk 0:01:51]}  Ne4 {[%clk 0:01:17]} 25. Be5 {[%clk 0:01:47]}  Rc8 {[%clk 0:01:16]} 26. Rxc8 {[%clk 0:01:46]}  Bxc8 {[%clk 0:01:17]} 27. Bd4 {[%clk 0:01:40]}  Nd2 {[%clk 0:01:12]} 28. Bxb6 {[%clk 0:01:38]}  Be7 {[%clk 0:01:04]} 29. Bxa5 {[%clk 0:01:35]}  Bxa3 {[%clk 0:01:01]} 30. Bxd2 {[%clk 0:01:34]} 1-0


[Site "https://www.chess.com"]

[Event "Titled Tuesday Blitz November 29 Early 2022"]
[White "Atakhan, Abtin"]
[Black "Huber, Benedikt"]
[WhiteFideId "22502203"]
[BlackFideId "12923583"]
[WhiteElo "2298"]
[BlackElo "2199"]
[Result "1-0"]
[Round "01"]
[TimeControl "180+1"]
[Date "2022.11.30"]
[WhiteClock "0:01:08"]
[BlackClock "0:00:27"]

1. c4 {[%clk 0:02:59]}  Nf6 {[%clk 0:02:57]} 2. Nc3 {[%clk 0:02:57]}  c5 {[%clk 0:02:57]} 3. g3 {[%clk 0:02:56]}  e6 {[%clk 0:02:57]} 4. Nf3 {[%clk 0:02:52]}  b6 {[%clk 0:02:57]} 5. Bg2 {[%clk 0:02:52]}  Bb7 {[%clk 0:02:57]} 6. O-O {[%clk 0:02:53]}  Be7 {[%clk 0:02:57]} 7. d4 {[%clk 0:02:53]}  cxd4 {[%clk 0:02:58]} 8. Qxd4 {[%clk 0:02:54]}  d6 {[%clk 0:02:57]} 9. Bg5 {[%clk 0:02:49]}  h6 {[%clk 0:02:55]} 10. Bxf6 {[%clk 0:02:50]}  Bxf6 {[%clk 0:02:56]} 11. Qf4 {[%clk 0:02:50]}  a6 {[%clk 0:02:37]} 12. Rfd1 {[%clk 0:02:44]}  Be7 {[%clk 0:02:36]} 13. Rac1 {[%clk 0:02:40]}  O-O {[%clk 0:02:33]} 14. Ne4 {[%clk 0:02:41]}  d5 {[%clk 0:02:13]} 15. cxd5 {[%clk 0:02:38]}  exd5 {[%clk 0:02:14]} 16. Nc3 {[%clk 0:02:34]}  Re8 {[%clk 0:02:00]} 17. Nd4 {[%clk 0:02:21]}  Bg5 {[%clk 0:02:00]} 18. Qf5 {[%clk 0:02:15]}  Bxc1 {[%clk 0:01:59]} 19. Rxc1 {[%clk 0:02:16]}  Nc6 {[%clk 0:01:52]} 20. Rd1 {[%clk 0:02:11]}  Nxd4 {[%clk 0:01:43]} 21. Rxd4 {[%clk 0:02:12]}  Rc8 {[%clk 0:01:42]} 22. h4 {[%clk 0:02:05]}  Qe7 {[%clk 0:01:37]} 23. e3 {[%clk 0:01:59]}  Rc4 {[%clk 0:01:31]} 24. Rd1 {[%clk 0:01:46]}  d4 {[%clk 0:01:26]} 25. exd4 {[%clk 0:01:36]}  g6 {[%clk 0:01:16]} 26. Qd3 {[%clk 0:01:35]}  b5 {[%clk 0:01:15]} 27. Nd5 {[%clk 0:01:27]}  Qd6 {[%clk 0:00:55]} 28. Ne3 {[%clk 0:01:25]}  Bxg2 {[%clk 0:00:55]} 29. Kxg2 {[%clk 0:01:23]}  Rcc8 {[%clk 0:00:43]} 30. h5 {[%clk 0:01:21]}  Re7 {[%clk 0:00:32]} 31. hxg6 {[%clk 0:01:17]}  Qxg6 {[%clk 0:00:33]} 32. Nd5 {[%clk 0:01:09]}  Rd7 {[%clk 0:00:27]} 33. Qxg6+ {[%clk 0:01:08]} 1-0


[Site "https://www.chess.com"]

[Event "Titled Tuesday Blitz November 29 Early 2022"]
[White "Aung Thant Zin"]
[Black "Leenhouts, Koen"]
[WhiteFideId "13000063"]
[BlackFideId "1008439"]
[WhiteElo "2278"]
[BlackElo "2409"]
[Result "0-1"]
[Round "01"]
[TimeControl "180+1"]
[Date "2022.11.30"]
[WhiteClock "0:00:39"]
[BlackClock "0:00:51"]

1. e4 {[%clk 0:02:59]}  e5 {[%clk 0:02:19]} 2. Nf3 {[%clk 0:02:56]}  d6 {[%clk 0:02:19]} 3. d4 {[%clk 0:02:56]}  exd4 {[%clk 0:02:20]} 4. Nxd4 {[%clk 0:02:55]}  Nf6 {[%clk 0:02:20]} 5. Nc3 {[%clk 0:02:55]}  Be7 {[%clk 0:02:20]} 6. Bc4 {[%clk 0:02:55]}  O-O {[%clk 0:02:19]} 7. Bb3 {[%clk 0:02:53]}  c6 {[%clk 0:02:02]} 8. O-O {[%clk 0:02:43]}  a5 {[%clk 0:01:59]} 9. a4 {[%clk 0:02:41]}  Na6 {[%clk 0:01:58]} 10. Re1 {[%clk 0:02:34]}  Nc5 {[%clk 0:01:58]} 11. Ba2 {[%clk 0:02:34]}  Qb6 {[%clk 0:01:56]} 12. b3 {[%clk 0:02:24]}  Bg4 {[%clk 0:01:46]} 13. f3 {[%clk 0:02:19]}  Bd7 {[%clk 0:01:47]} 14. Be3 {[%clk 0:02:20]}  Rad8 {[%clk 0:01:46]} 15. Nce2 {[%clk 0:02:10]}  Qc7 {[%clk 0:01:44]} 16. c4 {[%clk 0:02:06]}  Rfe8 {[%clk 0:01:42]} 17. Bb1 {[%clk 0:02:03]}  Na6 {[%clk 0:01:41]} 18. Nc3 {[%clk 0:01:48]}  Bf8 {[%clk 0:01:39]} 19. Bd3 {[%clk 0:01:41]}  Nb4 {[%clk 0:01:39]} 20. Bf1 {[%clk 0:01:41]}  Bc8 {[%clk 0:01:38]} 21. Rc1 {[%clk 0:01:39]}  Nd7 {[%clk 0:01:37]} 22. Kh1 {[%clk 0:01:37]}  g6 {[%clk 0:01:35]} 23. Nde2 {[%clk 0:01:32]}  Bg7 {[%clk 0:01:36]} 24. Bd4 {[%clk 0:01:32]}  Ne5 {[%clk 0:01:35]} 25. Ng3 {[%clk 0:01:27]}  h5 {[%clk 0:01:32]} 26. Be2 {[%clk 0:01:15]}  h4 {[%clk 0:01:30]} 27. Nf1 {[%clk 0:01:15]}  f5 {[%clk 0:01:16]} 28. f4 {[%clk 0:01:02]}  Ng4 {[%clk 0:01:12]} 29. Bxg4 {[%clk 0:01:02]}  fxg4 {[%clk 0:01:13]} 30. Bxg7 {[%clk 0:01:01]}  Qxg7 {[%clk 0:01:14]} 31. Ne3 {[%clk 0:00:50]}  g3 {[%clk 0:01:13]} 32. h3 {[%clk 0:00:49]}  Qf6 {[%clk 0:01:09]} 33. Rf1 {[%clk 0:00:44]}  Re7 {[%clk 0:01:06]} 34. f5 {[%clk 0:00:39]}  Qg5 {[%clk 0:00:51]} 0-1


[Site "https://www.chess.com"]